[Event "Turkish Cup 2022"]
[Site "Sakarya"]
[Date "2022.03.30"]
[Round "9.37"]
[White "Kaban, Mahmut"]
[Black "Kayan, Veli"]
[Result "1-0"]
[ECO "E73"]
[WhiteElo "1525"]
[BlackElo "1915"]
[Annotator "NA"]
[PlyCount "175"]
[EventDate "2022.03.25"]
[EventType "swiss"]
[EventCountry "TUR"]
[SourceTitle "playchess.com"]
[Source "ChessBase"]
[SourceQuality "1"]
[TimeControl "5400+30"]

1. c4 {[%emt 0:01:00]} Nf6 {[%emt 0:03:00]} 2. Nc3 {[%emt 0:00:30]} g6 {[%emt 0:00:30]} 3. e4 {[%emt 0:00:30]} d6 {[%emt 0:00:30]} 4. d4 {[%emt 0:00:30]} Bg7 {[%emt 0:03:30]} 5. Be2 {[%emt 0:00:00]} O-O {[%emt 0:00:30]} 6. Be3 {[%emt 0:00:00]} Na6 {[%emt 0:02:30]} 7. h4 {[%emt 0:04:30]} e5 {[%emt 0:00:30]} 8. d5 {[%emt 0:01:30]} Nc5 {[%emt 0:00:30]} 9. Qc2 {[%emt 0:10:30]} a5 {[%emt 0:00:30]} 10. h5 {[%emt 0:10:30]} b6 {[%emt 0:00:30]} 11. h6 {[%emt 0:04:30]} Bh8 {[%emt 0:00:00]} 12. Bg5 {[%emt 0:01:30]} Bd7 {[%emt 0:02:00]} 13. f3 {[%emt 0:02:30]} Qc8 {[%emt 0:03:30]} 14. g4 {[%emt 0:06:30]} a4 {[%emt 0:00:30]} 15. Nh3 {[%emt 0:09:30]} Qb7 {[%emt 0:01:30]} 16. O-O-O {[%emt 0:04:30]} Rfb8 {[%emt 0:05:30]} 17. Kb1 {[%emt 0:01:30]} Be8 {[%emt 0:00:30]} 18. Nf2 {[%emt 0:04:30]} Nfd7 {[%emt 0:00:30]} 19. Be3 {[%emt 0:00:30]} Qc8 {[%emt 0:00:30]} 20. Nb5 {[%emt 0:01:30]} Qd8 {[%emt 0:00:30]} 21. Rh2 {[%emt 0:06:30]} Rb7 {[%emt 0:00:30]} 22. Rc1 {[%emt 0:04:30]} Bf6 {[%emt 0:01:30]} 23. Qd2 {[%emt 0:00:30]} Nb8 {[%emt 0:00:30]} 24. Rd1 {[%emt 0:02:30]} Bxb5 {[%emt 0:01:30]} 25. cxb5 {[%emt 0:01:30]} Nbd7 {[%emt 0:00:30]} 26. Bc4 {[%emt 0:00:30]} Rba7 {[%emt 0:00:30]} 27. Rc1 {[%emt 0:01:52]} Ra5 {[%emt 0:03:30]} 28. Nd1 {[%emt 0:05:14]} Nb7 {[%emt 0:00:30]} 29. Nf2 {[%emt 0:01:34]} Ndc5 {[%emt 0:00:30]} 30. g5 {[%emt 0:00:30]} Bh8 {[%emt 0:00:30]} 31. Rg2 {[%emt 0:01:55]} R5a7 {[%emt 0:00:00]} 32. Nd3 {[%emt 0:02:49]} Nxd3 {[%emt 0:00:00]} 33. Bxd3 {[%emt 0:00:18]} Nc5 {[%emt 0:00:30]} 34. Bc4 {[%emt 0:00:50]} Qd7 {[%emt 0:00:30]} 35. Qe2 {[%emt 0:03:43]} Rf8 {[%emt 0:01:30]} 36. Rcg1 {[%emt 0:00:49]} Qe7 {[%emt 0:00:30]} 37. Qd2 {[%emt 0:02:07]} Rfa8 {[%emt 0:00:30]} 38. Qb4 {[%emt 0:01:37]} Qd7 {[%emt 0:00:30]} 39. Rg3 {[%emt 0:00:33]} Nb7 {[%emt 0:00:30]} 40. Rc1 {[%emt 0:01:22]} Rf8 {[%emt 0:00:30]} 41. Bf1 {[%emt 0:00:00]} Nc5 {[%emt 0:00:00]} 42. Bh3 {[%emt 0:00:38]} Qe7 {[%emt 0:00:00]} 43. Rc3 {[%emt 0:01:43]} Rfa8 {[%emt 0:01:30]} 44. Qc4 {[%emt 0:00:23]} Qe8 {[%emt 0:00:30]} 45. Kc2 {[%emt 0:00:51]} Ra5 {[%emt 0:00:30]} 46. Bf1 {[%emt 0:00:30]} Qd7 {[%emt 0:00:30]} 47. Be2 {[%emt 0:00:30]} Rf8 {[%emt 0:00:30]} 48. Bf1 {[%emt 0:00:30]} Qe8 {[%emt 0:00:30]} 49. Ra3 {[%emt 0:00:30]} Qa8 {[%emt 0:00:30]} 50. Bd2 {[%emt 0:00:30]} Ra7 {[%emt 0:00:30]} 51. Be3 {[%emt 0:00:00]} f6 {[%emt 0:00:30]} 52. Bh3 {[%emt 0:00:04]} f5 {[%emt 0:01:30]} 53. Bxc5 {[%emt 0:00:30]} bxc5 {[%emt 0:00:30]} 54. Qd3 {[%emt 0:01:16]} Qe8 {[%emt 0:06:30]} 55. Kc1 {[%emt 0:00:13]} Ra5 {[%emt 0:02:30]} 56. Qc4 {[%emt 0:00:30]} Rxb5 {[%emt 0:05:30]} 57. Rxa4 {[%emt 0:00:42]} Qd7 {[%emt 0:00:30]} 58. Rg2 {[%emt 0:00:14]} Rfb8 {[%emt 0:00:30]} 59. b3 {[%emt 0:01:12]} Qc8 {[%emt 0:02:30]} 60. Rc2 {[%emt 0:00:13]} Rb4 {[%emt 0:00:30]} 61. Qa6 {[%emt 0:00:25]} R4b7 {[%emt 0:03:30]} 62. Rc3 {[%emt 0:00:43]} Kf8 {[%emt 0:00:00]} 63. Kc2 {[%emt 0:00:05]} Ke7 {[%emt 0:00:00]} 64. Re3 {[%emt 0:01:06]} Qd7 {[%emt 0:00:30]} 65. Qc4 {[%emt 0:01:23]} Rf8 {[%emt 0:00:30]} 66. Qc3 {[%emt 0:00:17]} Qb5 {[%emt 0:00:30]} 67. Qc4 {[%emt 0:00:07]} Qb6 {[%emt 0:01:30]} 68. Qa6 {[%emt 0:00:20]} Qxa6 {[%emt 0:01:30]} 69. Rxa6 {[%emt 0:00:05]} Kd7 {[%emt 0:00:30]} 70. Kd3 {[%emt 0:01:06]} Rb4 {[%emt 0:00:30]} 71. Ke2 {[%emt 0:00:24]} Ke7 {[%emt 0:01:30]} 72. Ra7 {[%emt 0:00:37]} Kd7 {[%emt 0:00:00]} 73. Rc3 {[%emt 0:00:03]} Kc8 {[%emt 0:01:00]} 74. Ra8+ {[%emt 0:00:30]} Rb8 {[%emt 0:00:00]} 75. Rxb8+ {[%emt 0:00:19]} Kxb8 {[%emt 0:00:00]} 76. Rc4 {[%emt 0:00:30]} Kb7 {[%emt 0:00:00]} 77. Ke3 {[%emt 0:00:30]} Kb6 {[%emt 0:00:00]} 78. Ra4 {[%emt 0:00:30]} Kb7 {[%emt 0:00:30]} 79. Bf1 {[%emt 0:00:30]} fxe4 {[%emt 0:00:30]} 80. Ba6+ {[%emt 0:00:30]} Kb6 {[%emt 0:00:30]} 81. fxe4 {[%emt 0:00:46]} Rf4 {[%emt 0:01:30]} 82. Be2 {[%emt 0:00:30]} Kb7 {[%emt 0:00:00]} 83. Ra5 {[%emt 0:00:02]} Rf8 {[%emt 0:01:00]} 84. Rb5+ {[%emt 0:00:37]} Kc8 {[%emt 0:00:30]} 85. Bg4+ {[%emt 0:00:35]} Kd8 {[%emt 0:00:30]} 86. Rb8+ {[%emt 0:00:30]} Ke7 {[%emt 0:00:30]} 87. Rxf8 {[%emt 0:00:00]} Kxf8 {[%emt 0:00:30]} 88. a4 {[%emt 0:00:00]} 1-0

[Event "Turkish Cup 2022"]
[Site "Sakarya"]
[Date "2022.03.30"]
[Round "9.38"]
[White "Gursu, Sungur"]
[Black "Selvi, Kaan"]
[Result "1-0"]
[ECO "A45"]
[WhiteElo "1562"]
[BlackElo "1823"]
[Annotator "NA"]
[PlyCount "93"]
[EventDate "2022.03.25"]
[EventType "swiss"]
[EventCountry "TUR"]
[SourceTitle "playchess.com"]
[Source "ChessBase"]
[SourceQuality "1"]
[TimeControl "5400+30"]

1. d4 {[%emt 0:01:00]} Nf6 {[%emt 0:01:00]} 2. f3 {[%emt 0:00:30]} c5 {[%emt 0:01:30]} 3. d5 {[%emt 0:00:30]} e6 {[%emt 0:00:30]} 4. e4 {[%emt 0:00:00]} e5 {[%emt 0:04:30]} 5. Nc3 {[%emt 0:00:00]} d6 {[%emt 0:02:30]} 6. Bb5+ {[%emt 0:06:30]} Nbd7 {[%emt 0:01:30]} 7. a4 {[%emt 0:03:30]} Nh5 {[%emt 0:12:30]} 8. Nge2 {[%emt 0:09:30]} a6 {[%emt 0:05:30]} 9. Bxd7+ {[%emt 0:00:30]} Bxd7 {[%emt 0:00:30]} 10. Be3 {[%emt 0:06:30]} g5 {[%emt 0:12:30]} 11. O-O {[%emt 0:10:30]} Qf6 {[%emt 0:13:30]} 12. a5 {[%emt 0:03:30]} Be7 {[%emt 0:03:30]} 13. Na4 {[%emt 0:01:30]} Bd8 {[%emt 0:01:30]} 14. Nb6 {[%emt 0:07:30]} Bxb6 {[%emt 0:00:30]} 15. axb6 {[%emt 0:00:00]} Nf4 {[%emt 0:06:30]} 16. g3 {[%emt 0:04:00]} Nh3+ {[%emt 0:04:30]} 17. Kh1 {[%emt 0:00:30]} h5 {[%emt 0:00:30]} 18. c4 {[%emt 0:06:30]} Qg6 {[%emt 0:01:30]} 19. Qc2 {[%emt 0:02:30]} Rg8 {[%emt 0:13:58]} 20. b4 {[%emt 0:07:30]} Rc8 {[%emt 0:01:28]} 21. Ra5 {[%emt 0:01:30]} cxb4 {[%emt 0:04:37]} 22. c5 {[%emt 0:00:30]} Bb5 {[%emt 0:00:27]} 23. c6 {[%emt 0:03:30]} Ke7 {[%emt 0:01:13]} 24. Rxb5 {[%emt 0:10:19]} axb5 {[%emt 0:00:06]} 25. Qd3 {[%emt 0:02:10]} g4 {[%emt 0:03:39]} 26. f4 {[%emt 0:00:32]} f6 {[%emt 0:00:13]} 27. f5 {[%emt 0:03:02]} Qe8 {[%emt 0:00:13]} 28. Ra1 {[%emt 0:02:25]} Ra8 {[%emt 0:02:54]} 29. Rc1 {[%emt 0:00:42]} Rc8 {[%emt 0:01:28]} 30. Qxb5 {[%emt 0:00:20]} Kf7 {[%emt 0:00:00]} 31. Qxb4 {[%emt 0:00:32]} Qe7 {[%emt 0:00:23]} 32. Nc3 {[%emt 0:01:40]} bxc6 {[%emt 0:00:49]} 33. b7 {[%emt 0:00:35]} c5 {[%emt 0:00:51]} 34. bxc8=Q {[%emt 0:00:20]} Rxc8 {[%emt 0:00:00]} 35. Qb6 {[%emt 0:00:27]} Ra8 {[%emt 0:00:39]} 36. Nb5 {[%emt 0:00:38]} Ra2 {[%emt 0:00:30]} 37. Nxd6+ {[%emt 0:00:30]} Kg7 {[%emt 0:00:00]} 38. Rxc5 {[%emt 0:00:58]} Ra1+ {[%emt 0:00:36]} 39. Kg2 {[%emt 0:00:13]} Ra2+ {[%emt 0:00:16]} 40. Kf1 {[%emt 0:00:20]} Ra1+ {[%emt 0:00:52]} 41. Bc1 {[%emt 0:00:16]} Ra7 {[%emt 0:00:15]} 42. Nc8 {[%emt 0:02:58]} Rb7 {[%emt 0:00:58]} 43. Qc6 {[%emt 0:00:54]} Qd7 {[%emt 0:00:16]} 44. Qxd7+ {[%emt 0:01:24]} Rxd7 {[%emt 0:00:04]} 45. Nb6 {[%emt 0:00:18]} Rb7 {[%emt 0:00:10]} 46. d6 {[%emt 0:00:41]} Rxb6 {[%emt 0:00:51]} 47. d7 {[%emt 0:00:14]} 1-0

[Event "Turkish Cup 2022"]
[Site "Sakarya"]
[Date "2022.03.30"]
[Round "9.39"]
[White "Erke, Mustafa Yigit"]
[Black "Sahin, Huseyin"]
[Result "1-0"]
[ECO "B10"]
[WhiteElo "1517"]
[BlackElo "1788"]
[Annotator "NA"]
[PlyCount "65"]
[EventDate "2022.03.25"]
[EventType "swiss"]
[EventCountry "TUR"]
[SourceTitle "playchess.com"]
[Source "ChessBase"]
[SourceQuality "1"]
[TimeControl "5400+30"]

1. e4 {[%emt 0:03:00]} c6 {[%emt 0:01:00]} 2. c4 {[%emt 0:00:30]} d5 {[%emt 0:00:30]} 3. cxd5 {[%emt 0:00:30]} cxd5 {[%emt 0:00:30]} 4. exd5 {[%emt 0:00:30]} Nf6 {[%emt 0:00:30]} 5. Bb5+ {[%emt 0:00:30]} Bd7 {[%emt 0:00:30]} 6. Bc4 {[%emt 0:00:30]} g6 {[%emt 0:00:00]} 7. Qb3 {[%emt 0:01:30]} b6 {[%emt 0:01:00]} 8. a4 {[%emt 0:06:30]} a6 {[%emt 0:00:30]} 9. d3 {[%emt 0:10:30]} Bc8 {[%emt 0:03:30]} 10. Be3 {[%emt 0:00:30]} Nbd7 {[%emt 0:06:30]} 11. d6 {[%emt 0:00:30]} Ne5 {[%emt 0:04:30]} 12. dxe7 {[%emt 0:03:30]} Bxe7 {[%emt 0:00:30]} 13. Qxb6 {[%emt 0:00:30]} Qd7 {[%emt 0:06:30]} 14. Qd4 {[%emt 0:01:30]} Qf5 {[%emt 0:02:30]} 15. Qf4 {[%emt 0:12:30]} Nxd3+ {[%emt 0:04:30]} 16. Bxd3 {[%emt 0:00:30]} Qxd3 {[%emt 0:00:00]} 17. Ne2 {[%emt 0:04:30]} O-O {[%emt 0:05:00]} 18. Nc1 {[%emt 0:05:30]} Qc2 {[%emt 0:05:30]} 19. O-O {[%emt 0:01:30]} Nd5 {[%emt 0:02:30]} 20. Qf3 {[%emt 0:04:30]} Nxe3 {[%emt 0:04:30]} 21. Qxe3 {[%emt 0:01:30]} Qxb2 {[%emt 0:03:30]} 22. Ra2 {[%emt 0:02:30]} Qf6 {[%emt 0:02:30]} 23. Re1 {[%emt 0:04:30]} Be6 {[%emt 0:01:30]} 24. Rae2 {[%emt 0:00:30]} Bb4 {[%emt 0:01:30]} 25. Nd2 {[%emt 0:11:30]} Rad8 {[%emt 0:02:30]} 26. Nd3 {[%emt 0:00:30]} Ba5 {[%emt 0:05:30]} 27. Nc5 {[%emt 0:13:41]} Rfe8 {[%emt 0:05:30]} 28. Nde4 {[%emt 0:05:26]} Qe7 {[%emt 0:04:30]} 29. Nxe6 {[%emt 0:03:40]} Qxe6 {[%emt 0:00:30]} 30. Qg5 {[%emt 0:00:41]} f5 {[%emt 0:13:21]} 31. Nf6+ {[%emt 0:00:54]} Kf7 {[%emt 0:00:02]} 32. Nxe8 {[%emt 0:00:30]} h6 {[%emt 0:05:17]} 33. Qxd8 {[%emt 0:00:30]} 1-0

[Event "Turkish Cup 2022"]
[Site "Sakarya"]
[Date "2022.03.30"]
[Round "9.40"]
[White "Serbulent, Huseyin"]
[Black "Hatipoglu, Metin"]
[Result "1-0"]
[ECO "C90"]
[WhiteElo "1775"]
[BlackElo "1579"]
[Annotator "NA"]
[PlyCount "97"]
[EventDate "2022.03.25"]
[EventType "swiss"]
[EventCountry "TUR"]
[SourceTitle "playchess.com"]
[Source "ChessBase"]
[SourceQuality "1"]
[TimeControl "5400+30"]

1. e4 {[%emt 0:01:00]} e5 {[%emt 0:01:00]} 2. Nf3 {[%emt 0:00:30]} Nc6 {[%emt 0:00:30]} 3. Bb5 {[%emt 0:00:30]} a6 {[%emt 0:00:30]} 4. Ba4 {[%emt 0:00:30]} Nf6 {[%emt 0:00:30]} 5. O-O {[%emt 0:00:00]} Be7 {[%emt 0:00:30]} 6. Re1 {[%emt 0:00:00]} b5 {[%emt 0:00:30]} 7. Bb3 {[%emt 0:00:00]} d6 {[%emt 0:00:30]} 8. c3 {[%emt 0:00:00]} O-O {[%emt 0:00:30]} 9. h3 {[%emt 0:00:30]} Na5 {[%emt 0:01:30]} 10. Bc2 {[%emt 0:00:00]} c5 {[%emt 0:02:30]} 11. d3 {[%emt 0:04:00]} Re8 {[%emt 0:04:30]} 12. Nbd2 {[%emt 0:00:30]} Bf8 {[%emt 0:04:30]} 13. Nf1 {[%emt 0:00:30]} g6 {[%emt 0:02:30]} 14. Ng3 {[%emt 0:01:30]} Bg7 {[%emt 0:02:30]} 15. d4 {[%emt 0:05:30]} cxd4 {[%emt 0:02:30]} 16. cxd4 {[%emt 0:00:30]} Qc7 {[%emt 0:01:30]} 17. d5 {[%emt 0:10:30]} Bd7 {[%emt 0:04:30]} 18. Be3 {[%emt 0:01:30]} Nc4 {[%emt 0:03:30]} 19. Bc1 {[%emt 0:01:30]} Rec8 {[%emt 0:01:30]} 20. Bd3 {[%emt 0:00:30]} Qb7 {[%emt 0:03:30]} 21. b3 {[%emt 0:00:30]} Nb6 {[%emt 0:00:30]} 22. a4 {[%emt 0:01:30]} Rc7 {[%emt 0:11:30]} 23. a5 {[%emt 0:00:30]} Nc8 {[%emt 0:01:30]} 24. Be3 {[%emt 0:00:30]} Ne8 {[%emt 0:01:30]} 25. Qd2 {[%emt 0:01:30]} Ne7 {[%emt 0:02:30]} 26. Bb6 {[%emt 0:00:30]} Rcc8 {[%emt 0:00:30]} 27. Qb4 {[%emt 0:02:30]} f5 {[%emt 0:05:30]} 28. Rad1 {[%emt 0:03:30]} fxe4 {[%emt 0:04:30]} 29. Bxe4 {[%emt 0:00:30]} Bf5 {[%emt 0:04:30]} 30. Ng5 {[%emt 0:09:30]} Bxe4 {[%emt 0:08:30]} 31. N3xe4 {[%emt 0:00:30]} Qd7 {[%emt 0:00:30]} 32. Re3 {[%emt 0:08:30]} Nf5 {[%emt 0:05:30]} 33. Rf3 {[%emt 0:00:30]} Nf6 {[%emt 0:05:19]} 34. g4 {[%emt 0:01:30]} Nxe4 {[%emt 0:01:37]} 35. Qxe4 {[%emt 0:00:00]} Nh6 {[%emt 0:01:24]} 36. Ne6 {[%emt 0:01:00]} Qe7 {[%emt 0:02:52]} 37. Qb4 {[%emt 0:04:30]} Nf7 {[%emt 0:01:16]} 38. Re1 {[%emt 0:01:30]} Rc2 {[%emt 0:02:08]} 39. Nd4 {[%emt 0:02:30]} Ng5 {[%emt 0:01:00]} 40. Rfe3 {[%emt 0:01:30]} Rcc8 {[%emt 0:02:18]} 41. f4 {[%emt 0:17:30]} Nf7 {[%emt 0:00:37]} 42. fxe5 {[%emt 0:00:30]} Nxe5 {[%emt 0:01:19]} 43. Ne6 {[%emt 0:00:30]} Qh4 {[%emt 0:02:08]} 44. Nxg7 {[%emt 0:07:34]} Kxg7 {[%emt 0:00:34]} 45. Bd4 {[%emt 0:00:42]} Rc2 {[%emt 0:01:03]} 46. Rf1 {[%emt 0:02:54]} Kh6 {[%emt 0:00:53]} 47. Qxd6 {[%emt 0:01:52]} Re2 {[%emt 0:01:49]} 48. Qxe5 {[%emt 0:01:17]} Rxe3 {[%emt 0:01:11]} 49. Bxe3+ {[%emt 0:00:20]} 1-0

[Event "Turkish Cup 2022"]
[Site "Sakarya"]
[Date "2022.03.30"]
[Round "9.43"]
[White "Tokan, Melih"]
[Black "Yenil, Mucahit"]
[Result "0-1"]
[ECO "B06"]
[WhiteElo "1321"]
[BlackElo "1736"]
[Annotator "NA"]
[PlyCount "64"]
[EventDate "2022.03.25"]
[EventType "swiss"]
[EventCountry "TUR"]
[SourceTitle "playchess.com"]
[Source "ChessBase"]
[SourceQuality "1"]
[TimeControl "5400+30"]

1. e4 {[%emt 0:01:00]} g6 {[%emt 0:01:00]} 2. d4 {[%emt 0:00:30]} Bg7 {[%emt 0:00:30]} 3. Nc3 {[%emt 0:00:30]} d6 {[%emt 0:00:30]} 4. Bg5 {[%emt 0:00:30]} a6 {[%emt 0:00:00]} 5. Qd2 {[%emt 0:00:00]} Nd7 {[%emt 0:00:00]} 6. O-O-O {[%emt 0:00:00]} b5 {[%emt 0:00:30]} 7. g3 {[%emt 0:04:30]} Bb7 {[%emt 0:00:30]} 8. Bg2 {[%emt 0:00:30]} c5 {[%emt 0:00:30]} 9. dxc5 {[%emt 0:05:30]} Nxc5 {[%emt 0:00:30]} 10. Nd5 {[%emt 0:03:30]} Ne6 {[%emt 0:02:30]} 11. h4 {[%emt 0:04:30]} Nxg5 {[%emt 0:00:30]} 12. Qxg5 {[%emt 0:01:30]} Bh6 {[%emt 0:00:30]} 13. e5 {[%emt 0:04:30]} Bxg5+ {[%emt 0:01:30]} 14. hxg5 {[%emt 0:00:30]} Bxd5 {[%emt 0:00:00]} 15. Bxd5 {[%emt 0:00:30]} Rc8 {[%emt 0:00:00]} 16. exd6 {[%emt 0:00:30]} exd6 {[%emt 0:00:00]} 17. Nf3 {[%emt 0:02:30]} Ne7 {[%emt 0:00:00]} 18. Rhe1 {[%emt 0:00:30]} O-O {[%emt 0:00:00]} 19. Bb3 {[%emt 0:01:30]} a5 {[%emt 0:00:00]} 20. a3 {[%emt 0:01:30]} Qc7 {[%emt 0:00:30]} 21. Rd2 {[%emt 0:00:00]} Nc6 {[%emt 0:00:30]} 22. Nh2 {[%emt 0:01:00]} a4 {[%emt 0:00:30]} 23. Ba2 {[%emt 0:00:30]} Rfe8 {[%emt 0:00:30]} 24. Rh1 {[%emt 0:00:30]} Nd4 {[%emt 0:00:00]} 25. c3 {[%emt 0:06:30]} Nb3+ {[%emt 0:01:00]} 26. Bxb3 {[%emt 0:00:30]} axb3 {[%emt 0:00:30]} 27. Ng4 {[%emt 0:00:30]} Re6 {[%emt 0:00:30]} 28. Nf6+ {[%emt 0:00:00]} Rxf6 {[%emt 0:00:30]} 29. gxf6 {[%emt 0:00:00]} Qd8 {[%emt 0:00:00]} 30. Rd4 {[%emt 0:05:30]} Qxf6 {[%emt 0:00:00]} 31. f4 {[%emt 0:00:00]} Qxd4 {[%emt 0:00:30]} 32. Rxh7 {[%emt 0:00:00]} Kxh7 {[%emt 0:00:00]} 0-1

[Event "Turkish Cup 2022"]
[Site "Sakarya"]
[Date "2022.03.30"]
[Round "9.44"]
[White "Vursan, Emre Can"]
[Black "Avsar, Gediz"]
[Result "1-0"]
[ECO "B27"]
[WhiteElo "1741"]
[BlackElo "1506"]
[Annotator "NA"]
[PlyCount "61"]
[EventDate "2022.03.25"]
[EventType "swiss"]
[EventCountry "TUR"]
[SourceTitle "playchess.com"]
[Source "ChessBase"]
[SourceQuality "1"]
[TimeControl "5400+30"]

1. e4 {[%emt 0:01:00]} c5 {[%emt 0:01:00]} 2. Nf3 {[%emt 0:00:30]} g6 {[%emt 0:00:30]} 3. d4 {[%emt 0:00:30]} cxd4 {[%emt 0:00:30]} 4. Qxd4 {[%emt 0:00:30]} Nf6 {[%emt 0:00:30]} 5. Bb5 {[%emt 0:00:00]} Nc6 {[%emt 0:00:00]} 6. Bxc6 {[%emt 0:00:00]} bxc6 {[%emt 0:00:00]} 7. e5 {[%emt 0:00:00]} Nd5 {[%emt 0:00:30]} 8. c4 {[%emt 0:00:00]} Nc7 {[%emt 0:01:30]} 9. h4 {[%emt 0:04:30]} Ne6 {[%emt 0:01:30]} 10. Qc3 {[%emt 0:01:30]} h5 {[%emt 0:02:30]} 11. Ng5 {[%emt 0:01:30]} d5 {[%emt 0:04:30]} 12. Nd2 {[%emt 0:15:30]} Bg7 {[%emt 0:06:30]} 13. Ndf3 {[%emt 0:01:30]} O-O {[%emt 0:02:30]} 14. O-O {[%emt 0:07:30]} Nxg5 {[%emt 0:02:30]} 15. Bxg5 {[%emt 0:01:30]} Qd7 {[%emt 0:02:30]} 16. c5 {[%emt 0:04:30]} Qc7 {[%emt 0:04:30]} 17. Rfe1 {[%emt 0:03:30]} Rb8 {[%emt 0:01:30]} 18. b3 {[%emt 0:01:30]} a5 {[%emt 0:07:30]} 19. Qe3 {[%emt 0:01:30]} e6 {[%emt 0:01:30]} 20. Bf6 {[%emt 0:01:30]} Rb4 {[%emt 0:06:30]} 21. Nd4 {[%emt 0:01:30]} Re8 {[%emt 0:07:30]} 22. a3 {[%emt 0:00:30]} Rb8 {[%emt 0:00:30]} 23. Qg5 {[%emt 0:00:30]} Bd7 {[%emt 0:01:30]} 24. g4 {[%emt 0:00:30]} Bxf6 {[%emt 0:05:30]} 25. exf6 {[%emt 0:02:30]} Kh7 {[%emt 0:01:30]} 26. gxh5 {[%emt 0:01:30]} Rg8 {[%emt 0:00:00]} 27. Kh1 {[%emt 0:00:30]} Qd8 {[%emt 0:01:00]} 28. Re3 {[%emt 0:10:30]} Qf8 {[%emt 0:01:30]} 29. Rg1 {[%emt 0:00:30]} Qh6 {[%emt 0:01:30]} 30. Reg3 {[%emt 0:03:30]} gxh5 {[%emt 0:03:30]} 31. Qxh6+ {[%emt 0:00:00]} 1-0

[Event "Turkish Cup 2022"]
[Site "Sakarya"]
[Date "2022.03.30"]
[Round "9.45"]
[White "Ercan, Mehmet Fahri"]
[Black "Topuz, Mirac Melih"]
[Result "1-0"]
[ECO "A92"]
[WhiteElo "1775"]
[BlackElo "1515"]
[Annotator "NA"]
[PlyCount "105"]
[EventDate "2022.03.25"]
[EventType "swiss"]
[EventCountry "TUR"]
[SourceTitle "playchess.com"]
[Source "ChessBase"]
[SourceQuality "1"]
[TimeControl "5400+30"]

1. Nf3 {[%emt 0:01:00]} f5 {[%emt 0:03:00]} 2. g3 {[%emt 0:00:30]} Nf6 {[%emt 0:00:30]} 3. Bg2 {[%emt 0:00:30]} e6 {[%emt 0:00:30]} 4. d4 {[%emt 0:00:30]} Be7 {[%emt 0:00:30]} 5. O-O {[%emt 0:00:30]} O-O {[%emt 0:00:30]} 6. c4 {[%emt 0:00:30]} b5 {[%emt 0:01:30]} 7. Ne5 {[%emt 0:00:30]} Ne4 {[%emt 0:00:30]} 8. cxb5 {[%emt 0:02:30]} a6 {[%emt 0:00:30]} 9. bxa6 {[%emt 0:04:30]} d6 {[%emt 0:00:30]} 10. a7 {[%emt 0:03:30]} Rxa7 {[%emt 0:00:30]} 11. Nd3 {[%emt 0:00:30]} Nd7 {[%emt 0:02:30]} 12. Nc3 {[%emt 0:00:00]} Nxc3 {[%emt 0:02:30]} 13. bxc3 {[%emt 0:00:00]} Nf6 {[%emt 0:00:00]} 14. Nb4 {[%emt 0:01:30]} Bb7 {[%emt 0:01:00]} 15. Nc6 {[%emt 0:38:30]} Bxc6 {[%emt 0:00:30]} 16. Bxc6 {[%emt 0:00:00]} d5 {[%emt 0:00:30]} 17. Bb5 {[%emt 0:00:00]} Ne4 {[%emt 0:00:30]} 18. Qc2 {[%emt 0:01:30]} c5 {[%emt 0:00:00]} 19. Bf4 {[%emt 0:05:30]} Qa5 {[%emt 0:04:00]} 20. c4 {[%emt 0:06:30]} cxd4 {[%emt 0:03:30]} 21. a4 {[%emt 0:01:30]} Bf6 {[%emt 0:02:30]} 22. Qb3 {[%emt 0:04:30]} g5 {[%emt 0:03:30]} 23. Bc1 {[%emt 0:00:30]} Nc3 {[%emt 0:01:30]} 24. Ba3 {[%emt 0:01:30]} Rb8 {[%emt 0:09:30]} 25. Kg2 {[%emt 0:06:45]} Nxb5 {[%emt 0:10:30]} 26. axb5 {[%emt 0:02:08]} Qc3 {[%emt 0:00:30]} 27. Qxc3 {[%emt 0:00:50]} dxc3 {[%emt 0:00:30]} 28. Bd6 {[%emt 0:04:38]} Rab7 {[%emt 0:43:31]} 29. Bxb8 {[%emt 0:03:14]} Rxb8 {[%emt 0:00:01]} 30. cxd5 {[%emt 0:09:14]} exd5 {[%emt 0:00:01]} 31. Rab1 {[%emt 0:01:00]} Kf7 {[%emt 0:01:34]} 32. Rfc1 {[%emt 0:00:13]} g4 {[%emt 0:00:24]} 33. f3 {[%emt 0:00:26]} Ke6 {[%emt 0:01:18]} 34. e3 {[%emt 0:00:18]} Kd6 {[%emt 0:00:40]} 35. b6 {[%emt 0:01:50]} Rb7 {[%emt 0:00:13]} 36. fxg4 {[%emt 0:00:17]} fxg4 {[%emt 0:00:30]} 37. Kf2 {[%emt 0:00:00]} Kc5 {[%emt 0:00:16]} 38. Ke2 {[%emt 0:00:11]} Kc4 {[%emt 0:00:26]} 39. Rc2 {[%emt 0:00:56]} Bd8 {[%emt 0:01:48]} 40. Ra2 {[%emt 0:00:07]} h5 {[%emt 0:04:07]} 41. Ra4+ {[%emt 0:00:05]} Kc5 {[%emt 0:00:32]} 42. Kd3 {[%emt 0:00:35]} Bxb6 {[%emt 0:01:09]} 43. Rab4 {[%emt 0:01:03]} Rb8 {[%emt 0:01:05]} 44. Rb5+ {[%emt 0:00:30]} Kc6 {[%emt 0:00:00]} 45. R5b3 {[%emt 0:00:43]} c2 {[%emt 0:02:22]} 46. Kxc2 {[%emt 0:00:10]} Rb7 {[%emt 0:00:21]} 47. Kd3 {[%emt 0:00:02]} Rb8 {[%emt 0:00:14]} 48. Rf1 {[%emt 0:00:25]} Kc7 {[%emt 0:01:14]} 49. Rf7+ {[%emt 0:00:39]} Kc6 {[%emt 0:00:15]} 50. Rh7 {[%emt 0:00:16]} Kc5 {[%emt 0:00:23]} 51. Rh6 {[%emt 0:00:09]} Rb7 {[%emt 0:00:02]} 52. Rh8 {[%emt 0:00:27]} Rc7 {[%emt 0:00:14]} 53. Rc3+ {[%emt 0:00:16]} 1-0

[Event "Turkish Cup 2022"]
[Site "Sakarya"]
[Date "2022.03.30"]
[Round "9.46"]
[White "Sezis, Doruk"]
[Black "Arslan, Tayfun"]
[Result "1-0"]
[ECO "A36"]
[WhiteElo "1566"]
[BlackElo "1512"]
[Annotator "NA"]
[PlyCount "43"]
[EventDate "2022.03.25"]
[EventType "swiss"]
[EventCountry "TUR"]
[SourceTitle "playchess.com"]
[Source "ChessBase"]
[SourceQuality "1"]
[TimeControl "5400+30"]

1. c4 {[%emt 0:02:00]} c5 {[%emt 0:01:00]} 2. Nc3 {[%emt 0:00:30]} Nc6 {[%emt 0:00:30]} 3. g3 {[%emt 0:00:30]} d6 {[%emt 0:00:30]} 4. Bg2 {[%emt 0:00:30]} e5 {[%emt 0:00:30]} 5. d3 {[%emt 0:00:30]} f5 {[%emt 0:00:30]} 6. e3 {[%emt 0:00:30]} Nf6 {[%emt 0:00:30]} 7. Nge2 {[%emt 0:00:00]} Be7 {[%emt 0:01:30]} 8. O-O {[%emt 0:00:00]} O-O {[%emt 0:02:30]} 9. d4 {[%emt 0:03:30]} a6 {[%emt 0:15:30]} 10. Nd5 {[%emt 0:03:30]} Nxd5 {[%emt 0:01:30]} 11. cxd5 {[%emt 0:00:00]} Nb8 {[%emt 0:00:30]} 12. dxe5 {[%emt 0:00:00]} dxe5 {[%emt 0:00:30]} 13. e4 {[%emt 0:01:30]} fxe4 {[%emt 0:00:30]} 14. Nc3 {[%emt 0:00:30]} Nd7 {[%emt 0:01:30]} 15. d6 {[%emt 0:02:30]} Bg5 {[%emt 0:00:30]} 16. Qd5+ {[%emt 0:00:30]} Kh8 {[%emt 0:00:30]} 17. Nxe4 {[%emt 0:00:00]} Bxc1 {[%emt 0:00:30]} 18. Raxc1 {[%emt 0:00:00]} Ra7 {[%emt 0:09:30]} 19. Nxc5 {[%emt 0:01:30]} Nxc5 {[%emt 0:05:30]} 20. Qxc5 {[%emt 0:00:30]} b6 {[%emt 0:00:30]} 21. Qxe5 {[%emt 0:00:00]} Rd7 {[%emt 0:00:00]} 22. Bh3 {[%emt 0:00:00]} 1-0